{"text_format":"1","workbook":"xlsx","n_sheets":3,"sheets":["RFP","Listas de Validacion","Resumen de Areas y Apps"],"not_rendered":{"charts":0,"images":0,"macros":1,"external_links":0,"defined_names":20,"comments":0,"pivot_tables":0},"unopened":[],"bounds":{"document_bytes":16777216,"sheet_cells":100000,"rows_first":2000,"rows_last":500,"rows_between":2000,"halvings":0,"cell_chars":16384,"cell_head_chars":4096},"cells_cut":0,"cells_raw":0,"read":"whole","date_system":"1900"}

{"sheet":"RFP","index":0,"n_rows":23,"n_cols":13,"rows_kept":23,"cut":false,"hidden":false,"merged":[[1,5,1,6],[1,7,1,11],[0,0,0,4],[0,5,0,11],[1,0,1,4]]}
["A DEFINIR POR EL CLIENTE",null,null,null,null,"A DEFINIR POR LOS CONSULTORES"]
["Descripción de características a proporcionar por el SPOC",null,null,null,null,"Observaciones y Definición del Gap",null,"Evaluación de Esfuerzo en hh",null,null,null,null,"Observaciones y Definición del Gap"]
["Característica","Area","Aplicación Principal","Historia de Usuario","Fase de aplicación","Cubierto por Odoo?","Forma de Solventar","Test","Demostración","Configuración","Desarrollo","Esfuerdo total hh","Columna1"]
["Integraciones otos sistemas","Contabilidad","Contabilidad","Como Jefe Contabilidad debo poder recibir los asientos contables desde otros sistemas externos como  BUK, Leasing, Gescom","2do Despliegue","No","Desarrollo Conector",null,null,null,null,{"$f":"SUM(H4:K4)","v":0},"Si solo se requiriera BUK, esto si es cubierto por nuestro servicio de soporte"]
["Perfiles de acceso y seguridad","Utilidades",null,"Sistema que entregue seguridad, tanto en la información de proceso, permisos de usuarios y rastreo de auSistema que entregue seguridad, tanto en la información de proceso, permisos de usuarios y rastreo de auditoría.","MVP","No","Modulo de Terceros Gratuito",null,null,null,null,{"$f":"SUM(H5:K5)","v":0},"La parte de auditoría no es cubierta por Odoo en forma directa. Si cubre la parte de seguridad dentro de la propia infraestructura del ERP, pero requerirá instalación de componentes de auditoría para cumplir completamente el requerimiento."]
["Cumplimiento normas financieras","Contabilidad","Consolidación","Sistema que cumpla bajo las normas financieras contables (IFRS), además Tributaria (Chile)","2do Despliegue","Si","Implementación Compleja",null,null,null,null,0,"Los reportes IFRS si bien son cubiertos por Odoo, requieren un mayor esfuerzo de configuración. Esto involucra el modulo de consolidación para poder crear la reportería necesaria."]
["Manejo multimonedas","Contabilidad","Consolidación","Sistema debe soportar multimonedas: CLP, USD, UF, otras","MVP","Si","Implementación",null,null,null,null,0,"Se deben habilitar las opciones de multimoneda. La conexión con mindicador.cl provee las tasas diarias desde el primer día de la instalación en adelante."]
["Multiempresas","Contabilidad","Consolidación","Sistema que pueda ser uniforme al Holding de la empresa. Un mismo sistema multiempresas para todo el Holding: 10 mineria; 10 inmobiliarias; 4 SpA; 5 EIRL; y 4 menores. 33 en total.","2do Despliegue","Si","Implementación Compleja",null,null,null,null,{"$f":"SUM(H8:K8)","v":0},"Por la cantidad de empresas del grupo requiere implementación compleja como principal objeto, pero también capacitacion detallada para que los usuarios claves que manejan la reportería puedan ser independiente a la hora de configurar reportes"]
["Importación cartolas bancos","Contabilidad","Bancos","Gte Finanazas requiere importar en forma directa las cartolas desde los bancos al sistema","2do Despliegue","No","Sistema de Terceros",null,null,null,null,0,"La conectividad de la cartola bancaria es cubierta por nuestro servicio de soporte. Tenemos implementado la conectividad a los bancos más importantes de Chile"]
["Informe de Flujos de Caja y Flujo Efectivo","Contabilidad","Reportes Financieros",null,"MVP","Si","Implementación",null,null,null,null,0,"Los flujos de caja son manejados en base a cuentas contables que se elijen para representar el tipo de flujo de caja. No es configurable por asientos sino por cuentas contables."]
["Manejo de Cheques","Contabilidad","Reportes Financieros","Informes con historia de cheques girados y no cobrados","MVP","Si","Capacitación",null,null,null,null,0,"Requiere capacitar a los usuarios y hacer una configuracion previa estándar para disponer del manejo de cheques, sin embargo es nativo de Odoo"]
["Activo Fijos","Contabilidad","Reportes Financieros","Modulo que contenga niveles de ingreso activo fijo (UGE)","2do Despliegue","No","Desarrollo Odoo",null,null,null,null,0,"Los componentes propios de Odoo tienen la capacidad de analizar y clasificar activos fijos, creando los asientos de depreciación en forma automática. Sin embargo desconocemos que implicaría que dichos reportes cumplan con los requerimientos UGE"]
["Activo Fijos","Contabilidad","Reportes Financieros","Llevar activo fijo financiero y tributario","2do Despliegue","Si","Implementación",null,null,null,null,0,"Se deben configurar todos los movimientos tributarios en un diario destinado a tal fin para poder ser filtrados de los reportes financieros (excluirlos)"]
["Activo Fijos","Contabilidad","Contabilidad","Desagregar un activo fijo por componentes","3er Despliegue","No","Desarrollo Odoo",null,null,null,null,0,"Requiere desarrollo Requiere mayor información para evaluarlo"]
["Activo Fijos","Contabilidad","Contabilidad","Manejo de depreciación y amortización en forma mensual","MVP","Si","Capacitación",null,null,null,null,0,"Si lo tiene, se explicó en la linea 12"]
["Activo Fijos","Contabilidad","Reportes Financieros","Reportes de activos según necesidades","2do Despliegue","Si","No Aplica",null,null,null,null,0,"Contabilidad y consolidación. Tiene los reportes tipicos (balance de situacion, tributarios, mayor, diario, etc) pero desconocemos requerimientos especiales que implicaría el \"según necesidades\""]
["Ingreso de Facturas","Contabilidad","Facturación","Ingreso de facturas de compras y sus report para revisión.","MVP","Si","Capacitación",null,null,null,null,0,"Característica Standard"]
["Informes o report","Contabilidad","Reportes Financieros"," Informes de análisis de cuentas","MVP","Si","Capacitación",null,null,null,null,0,"Característica Standard"]
["Informes o report","Contabilidad","Reportes Financieros","Emisión de libros contables obligatorios ante los entes respectivos de fiscalización","MVP","Si","No Aplica",null,null,null,null,0,"Diario en pantalla. Mayor en excel y pdf, balance de situacion en excel y pdf, EERR en excel y pdf balance tributario en excel y pdf. El cliente deberá dar conformidad a los reportes estandar porque no se considerarán horas extra para cambiar las características estandar"]
["Informes o report","Contabilidad","Reportes Financieros","Balances de 8 columnas","MVP","Si","No Aplica",null,null,null,null,0,"No se consideran horas extra para cambiar las características estandar"]
["Informes o report","Contabilidad","Consolidación","Balances clasificados IFRS","2do Despliegue","Si","Implementación Compleja",null,null,null,null,0,"Requiere configuracione y capacitaciones avanzadas"]
["Informes o report","Contabilidad","Consolidación","Balances comparativos IFRS","2do Despliegue","Si","Implementación Compleja",null,null,null,null,0,"Requiere configuracione y capacitaciones avanzadas"]
["Contabilidad completa multiempresa","Contabilidad","Consolidación","Todas necesitan tener contabilidad completa dado que, ante revisiones del SII, nos piden los libros, en formatos especiales,   para ser impresos en hojas autorizadas por el SII.","3er Despliegue","No","Sistema de Terceros",null,null,null,null,0,"Odoo no sube libros en formatos XML. Se puede usar aplicación de terceros para subir los libros. Requiere generar reportes con formatos que requiera el tercero"]

{"sheet":"Listas de Validacion","index":1,"n_rows":27,"n_cols":25,"rows_kept":27,"cut":false,"hidden":false,"merged":[]}
["Areas",null,"Compras",null,"Contabilidad",null,"Fabricación",null,"GestionDocumental",null,"Inventario",null,"Marketing",null,"Postventa",null,"Proyectos",null,"RRHH",null,"SitioWeb",null,"Utilidades",null,"Ventas"]
["Compras",null,"Compra",null,"Consolidación",null,"MRP",null,"Documentos",null,"Inventario",null,"Marketing Social",null,"Helpdesk",null,"Gestión de Proyectos",null,"Empleados",null,"Sitio Web",null,"Conversaciones",null,"Suscripciones"]
["Contabilidad",null,null,null,"Gastos",null,"Mantenimiento",null,"Spreadsheets",null,"Calidad",null,"Automatización de Marketing",null,"Servicio Externo",null,"Parte de Horas",null,"Valoraciones",null,"eLearning",null,"Calendario",null,"Punto de Venta"]
["Fabricación",null,null,null,"Clientes",null,"PLM",null,null,null,"Codigo de Barras",null,"Marketing por Email",null,"Reparaciones",null,"Planificación",null,"Asistencias",null,"Encuestas",null,"Notas",null,"Arriendos"]
["GestionDocumental",null,null,null,"Proveedores",null,null,null,null,null,"Delivery",null,"Eventos",null,null,null,null,null,"Reclutamiento",null,"e-Commerce",null,"Conocimiento",null,"CRM"]
["Inventario",null,null,null,"Facturación",null,null,null,null,null,null,null,null,null,null,null,null,null,"Referencias",null,null,null,"Contactos",null,"Ventas"]
["Marketing",null,null,null,"Bancos",null,null,null,null,null,null,null,null,null,null,null,null,null,"Ausencias",null,null,null,"Tableros"]
["Postventa",null,null,null,"Reportes Financieros",null,null,null,null,null,null,null,null,null,null,null,null,null,"Aprobaciones",null,null,null,"Firma"]
["Proyectos",null,null,null,"Contabilidad",null,null,null,null,null,null,null,null,null,null,null,null,null,"Payroll",null,null,null,"Chat en Vivo"]
["RRHH",null,null,null,null,null,null,null,null,null,null,null,null,null,null,null,null,null,null,null,null,null,"Flota"]
["SitioWeb",null,null,null,null,null,null,null,null,null,null,null,null,null,null,null,null,null,null,null,null,null,"Infraestructura ERP"]
["Utilidades"]
["Ventas"]
[]
[]
[]
[]
[]
[]
["Etapas",null,"Cubierto Odoo",null,"Formas de Solventar",null,"Si","No","Parcialmente"]
["MVP",null,"Si",null,"No Aplica",null,"No Aplica","Modulo de Terceros Gratuito","Modulo de Terceros Gratuito"]
["2do Despliegue",null,"No",null,"Implementación",null,"Implementación","Modulo de Terceros Pagado","Modulo de Terceros Pagado"]
["3er Despliegue",null,"Parcialmente",null,"Implementación Compleja",null,"Implementación Compleja","Desarrollo Odoo","Desarrollo Odoo"]
["Soporte Post Venta",null,null,null,"Capacitación",null,"Capacitación","Desarrollo Conector","Desarrollo Conector"]
[null,null,null,null,"Modulo de Terceros Gratuito",null,null,"Sistema de Terceros","Sistema de Terceros"]
[null,null,null,null,"Modulo de Terceros Pagado",null,null,"Consultoría Terceros","Consultoría Terceros"]
[null,null,null,null,"Desarrollo"]

{"sheet":"Resumen de Areas y Apps","index":2,"n_rows":54,"n_cols":2,"rows_kept":54,"cut":false,"hidden":false,"merged":[]}
["Area","Aplicaciones"]
["Utilidades","Conversaciones"]
["Utilidades","Calendario"]
["Utilidades","Notas"]
["Utilidades","Conocimiento"]
["Utilidades","Contactos"]
["Utilidades","Tableros"]
["Ventas","Suscripciones"]
["Gestion Documental","Documentos"]
["Proyectos","Gestión de Proyectos"]
["Proyectos","Parte de Horas"]
["Proyectos","Planificación"]
["Postventa","Helpdesk"]
["Sitio Web","Sitio Web"]
["Sitio Web","eLearning"]
["Marketing","Marketing Social"]
["Marketing","Automatización de Marketing"]
["Marketing","Marketing por Email"]
["Marketing","Eventos"]
["Sitio Web","Encuestas"]
["Compras","Compra"]
["Inventario","Inventario"]
["Contabilidad","Consolidación"]
["Utilidades","Firma"]
["RRHH","Empleados"]
["RRHH","Valoraciones"]
["RRHH","Asistencias"]
["RRHH","Reclutamiento"]
["RRHH","Referencias"]
["RRHH","Ausencias"]
["Contabilidad","Gastos"]
["Utilidades","Chat en Vivo"]
["RRHH","Aprobaciones"]
["Ventas","Punto de Venta"]
["Fabricación","MRP"]
["Fabricación","Mantenimiento"]
["Inventario","Calidad"]
["Fabricación","PLM"]
["Ventas","Arriendos"]
["Postventa","Servicio Externo"]
["Utilidades","Flota"]
["Postventa","Reparaciones"]
["Inventario","Codigo de Barras"]
["RRHH","Payroll"]
["Inventario","Delivery"]
["Ventas","CRM"]
["Ventas","Ventas"]
["Contabilidad","Clientes"]
["Contabilidad","Proveedores"]
["Contabilidad","Facturación"]
["Contabilidad","Bancos"]
["Contabilidad","Reportes Financieros"]
["Gestion Documental","Spreadsheets"]
["Sitio Web","e-Commerce"]